fUST/lending_fUST_20240621
["ID","MTS","AMOUNT","RATE_DAILY","PERIOD"]
[330008626,1718928638656,-500.0,0.00054794,120]
[330008627,1718928638666,-500.0,0.00054794,120]
[330008628,1718928638676,-500.0,0.00054794,120]
[330008629,1718928638686,-500.0,0.00054794,120]
[330008630,1718928638695,-500.0,0.00054794,120]
[330008631,1718928638705,-1761.15,0.00054794,120]
[330008632,1718928638715,-292.60855716,0.00054794,120]
[330008633,1718928638724,-500.0,0.00054794,120]
[330008634,1718928638734,-500.0,0.00054794,120]
[330008635,1718928638744,-500.0,0.00054794,2]
[330008636,1718928638754,-500.0,0.00054794,120]
[330008637,1718928638764,-889.59,0.00054794,120]
[330008638,1718928638774,-582.76,0.00054794,120]
[330008639,1718928638784,-500.0,0.00054794,120]
[330008640,1718928638794,-1553.82,0.00054794,120]
[330008641,1718928638803,-500.0,0.00054794,120]
[330008642,1718928638813,-156.83363757,0.00054794,120]
[330008643,1718928638823,-740.4,0.00054794,120]
[330008644,1718928638832,-500.0,0.00054794,120]
[330008645,1718928638842,-500.0,0.00054794,120]
[330008646,1718928638853,-2234.16,0.00054794,60]
[330008647,1718928638864,-634.25630372,0.00054794,120]
[330008648,1718928638874,-577.95516273,0.00054794,120]
[330008649,1718928638884,-500.0,0.00054794,120]
[330008650,1718928638894,-505.68429365,0.00054794,120]
[330008651,1718928638904,-500.0,0.00054794,120]
[330008652,1718928638914,-887.44,0.00054794,120]
[330008653,1718928638924,-1324.63,0.00054794,120]
[330008654,1718928638934,-500.0,0.00054794,120]
[330008655,1718928638945,-524.37,0.00054794,120]
[330008656,1718928638955,-500.98711381,0.00054794,120]
[330008657,1718928638965,-500.0,0.00054794,120]
[330008658,1718928638975,-567.59,0.00054794,120]
[330008659,1718928638986,-500.0,0.00054794,120]
[330008660,1718928638995,-521.35966754,0.00054794,120]
[330008661,1718928639005,-559.66,0.00054794,120]
[330008662,1718928639018,-500.0,0.00054794,120]
[330008663,1718928639028,-500.0,0.00054794,120]
[330008664,1718928639038,-509.74812083,0.00054794,120]
[330008665,1718928639048,-500.0,0.00054794,120]
[330008666,1718928639058,-1090.64,0.00054794,120]
[330008667,1718928639068,-180.47696669,0.00054794,120]
[330008668,1718928639078,-500.0,0.00054794,120]
[330008669,1718928639088,-500.0,0.00054794,120]
[330008670,1718928639098,-1573.27,0.00054794,120]
[330008671,1718928639110,-3102.06,0.00054794,120]
[330008672,1718928639235,-657.27,0.00054794,120]
[330008673,1718928639246,-500.0,0.00054794,60]
[330008674,1718928639256,-500.0,0.00054794,120]
[330008675,1718928639266,-578.81,0.00054794,120]
[330008676,1718928639276,-508.99948502,0.00054794,120]
[330008677,1718928639286,-500.0,0.00054794,120]
[330008678,1718928639296,-435.97138553,0.00054794,120]
[330008679,1718928639305,-17846.48,0.00054794,120]
[330008680,1718928639315,-508.45709867,0.00054794,120]
[330008681,1718928639325,-500.0,0.00054794,120]
[330008682,1718928639334,-500.0,0.00054794,120]
[330008683,1718928639344,-500.0,0.00054794,120]
[330008684,1718928639357,-1536.73,0.00054794,120]
[330008685,1718928639367,-550.73,0.00054794,120]
[330008686,1718928639377,-599.56,0.00054794,120]
[330008687,1718928639387,-1636.24,0.00054794,120]
[330008688,1718928639397,-565.52,0.00054794,120]
[330008689,1718928639406,-500.0,0.00054794,30]
[330008690,1718928639417,-1153.7,0.00054794,120]
[330008691,1718928639428,-500.0,0.00054794,120]
[330008692,1718928639438,-500.0,0.00054794,120]
[330008693,1718928639450,-500.0,0.00054794,120]
[330008694,1718928639460,-6962.25,0.00054794,120]
[330008695,1718928639470,-1109.8,0.00054794,120]
[330008696,1718928639480,-50332.83,0.00054794,120]
[330008697,1718928639490,-500.0,0.00054794,120]
[330008698,1718928639501,-1225.3,0.00054794,120]
[330008699,1718928639511,-917.07,0.00054794,120]
[330008700,1718928639522,-1012.05,0.00054794,120]
[330008701,1718928639532,-1891.73,0.00054794,120]
[330008702,1718928639542,-500.0,0.00054794,120]
[330008703,1718928639552,-1571.05,0.00054794,120]
[330008704,1718928639561,-4141.83,0.00054794,21]
[330008706,1718928639571,-1887.91,0.00054794,120]
[330008708,1718928639581,-183.23295459,0.00054794,120]
[330008709,1718928639590,-1296.06,0.00054794,120]
[330008711,1718928639601,-783.28,0.00054794,120]
[330008713,1718928639611,-8465.72,0.00054794,120]
[330008714,1718928639621,-500.0,0.00054794,120]
[330008715,1718928639632,-500.0,0.00054794,120]
[330008716,1718928639643,-500.0,0.00054794,120]
[330008717,1718928639653,-500.0,0.00054794,120]
[330008718,1718928639663,-500.0,0.00054794,120]
[330008719,1718928639674,-500.0,0.00054794,120]
[330008720,1718928639684,-500.0,0.00054794,120]
[330008721,1718928639694,-1283.43,0.00054794,120]
[330008722,1718928639706,-500.0,0.00054794,120]
[330008723,1718928639717,-1041.68,0.00054794,120]
[330008724,1718928639727,-500.0,0.00054794,120]
[330008725,1718928639737,-598.43,0.00054794,120]
[330008726,1718928639746,-708.55,0.00054794,120]
[330008727,1718928639756,-2237.86,0.00054794,120]
[330008728,1718928639765,-430.0848862,0.00054794,120]
[330008729,1718928639775,-1545.56,0.00054794,120]
[330008730,1718928639784,-1097.3,0.00054794,120]
[330008731,1718928639794,-1221.03,0.00054794,120]
[330008732,1718928639803,-500.0,0.00054794,120]
[330008733,1718928639813,-662.84,0.00054794,120]
[330008734,1718928639823,-5751.35,0.00054794,120]
[330008735,1718928639832,-5751.35,0.00054794,120]
[330008736,1718928639842,-5751.35,0.00054794,120]
[330008737,1718928639853,-5751.35,0.00054794,120]
[330008738,1718928639863,-5751.35,0.00054794,120]
[330008739,1718928639872,-500.0,0.00054794,120]
[330008740,1718928639881,-5751.35,0.00054794,120]
[330008741,1718928639891,-5751.35,0.00054794,120]
[330008742,1718928639900,-23821.73,0.00054794,120]
[330008743,1718928639910,-2254.59,0.00054794,120]
[330008744,1718928639919,-506.88,0.00054794,120]
[330008745,1718928639929,-661.09,0.00054794,120]
[330008746,1718928639939,-549.76624036,0.00054794,120]
[330008747,1718928639949,-8223.98,0.00054794,120]
[330008748,1718928639958,-613.45,0.00054794,120]
[330008749,1718928639968,-500.0,0.00054794,120]
[330008750,1718928639978,-500.0,0.00054794,120]
[330008752,1718928639988,-500.0,0.00054794,120]
[330008754,1718928639997,-500.0,0.00054794,120]
[330008755,1718928640007,-1152.67,0.00054794,120]
[330008756,1718928640016,-1997.03,0.00054794,120]
[330008757,1718928640025,-733.61,0.00054794,120]
[330008758,1718928640034,-4620.32,0.00054794,120]
[330008759,1718928640044,-500.0,0.00054794,120]
[330008760,1718928640053,-593.78,0.00054794,120]
[330008762,1718928640063,-500.0,0.00054794,120]
[330008764,1718928640072,-500.0,0.00054794,120]
[330008766,1718928640082,-500.0,0.00054794,120]
[330008768,1718928640092,-660.28,0.00054794,120]
[330008770,1718928640103,-500.0,0.00054794,120]
[330008772,1718928640112,-5058.75,0.00054794,120]
[330008774,1718928640121,-500.0,0.00054794,120]
[330008776,1718928640131,-500.0,0.00054794,120]
[330008778,1718928640140,-500.0,0.00054794,120]
[330008780,1718928640150,-500.0,0.00054794,120]
[330008782,1718928640159,-500.0,0.00054794,120]
[330008784,1718928640169,-500.0,0.00054794,120]
[330008786,1718928640179,-500.0,0.00054794,120]
[330008788,1718928640189,-1780.27,0.00054794,120]
[330008790,1718928640198,-500.0,0.00054794,120]
[330008792,1718928640207,-2126.42,0.00054794,120]
[330008794,1718928640216,-2820.34,0.00054794,120]
[330008796,1718928640226,-7252.35,0.00054794,120]
[330008798,1718928640235,-500.0,0.00054794,120]
[330008800,1718928640245,-500.0,0.00054794,120]
[330008802,1718928640254,-5751.35,0.00054899,120]
[330008804,1718928640264,-5751.35,0.00054899,120]
[330008806,1718928640274,-73957.76092299,0.000549,120]
[330008808,1718928640284,-252.0,0.00055,34]
[330008810,1718928640294,-911.392255,0.00055,120]
[330008812,1718928640303,-160.0,0.00055,50]
[330008814,1718928640312,-1000.0,0.00055,120]
[330008816,1718928640322,-5751.35,0.00055065,120]
[330008818,1718928640332,-5751.35,0.00055067,120]
[330008820,1718928640341,-5751.35,0.00055067,120]
[330008822,1718928640352,-3460.30726413,0.00055067,120]
[330008825,1718928640368,-1867.55795404,0.00055067,120]
[330008827,1718928640380,-423.48478183,0.00055067,120]
[330008829,1718928640390,-4003.3471102,0.00055067,120]
[330008834,1718928640439,-500.0,0.00054794,120]
[330008836,1718928640449,-1385.18255908,0.00055067,120]
[330008839,1718928640461,-362.82033072,0.00055067,120]
[330008840,1718928640471,-245.27515739,0.00055067,120]
[330008843,1718928640483,-5506.07484261,0.00055067,120]
[330008845,1718928640492,-5751.35,0.00055067,120]
[330008847,1718928640502,-500.0,0.00055068,120]
[330008849,1718928640511,-500.0,0.00055068,120]
[330008851,1718928640522,-500.0,0.00055068,120]
[330008853,1718928640533,-500.0,0.00055068,120]
[330008855,1718928640543,-500.0,0.00055068,120]
[330008856,1718928640552,-500.0,0.00055068,120]
[330008858,1718928640562,-500.0,0.00055068,120]
[330008860,1718928640572,-500.0,0.00055068,120]
[330008862,1718928640581,-500.0,0.00055068,120]
[330008864,1718928640590,-503.38,0.00055068,120]
[330008866,1718928640600,-151.0,0.00055068,120]
[330008868,1718928640610,-500.0,0.00055068,120]
[330008870,1718928640619,-500.0,0.00055068,120]
[330008872,1718928640628,-708.37,0.00055068,120]
[330008874,1718928640638,-500.0,0.00055068,120]
[330008876,1718928640649,-1426.38,0.00055068,120]
[330008878,1718928640660,-753.36,0.00055068,120]
[330008881,1718928640670,-500.0,0.00055068,120]
[330008882,1718928640680,-500.0,0.00055068,120]
[330008885,1718928640690,-410.19773955,0.00055068,120]
[330008887,1718928640703,-89.80226045,0.00055068,120]
[330008889,1718928640713,-439.88749846,0.00055068,120]
[330009103,1718928642820,-500.0,0.00054794,120]
[330009104,1718928642830,-60.11250154,0.00055068,120]
[330009106,1718928642839,-500.0,0.00055068,120]
[330009108,1718928642849,-507.43,0.00055068,120]
[330009110,1718928642859,-103.79480669,0.00055068,120]
[330009119,1718928642972,-366.31960992,0.00055068,120]
[330009208,1718929634150,-6343.72683538,0.00021,3]
[330009209,1718929645155,-1432.87052302,0.00021,3]
[330009210,1718929645178,-2804.0847909,0.00040379,2]
[330009211,1718929645200,-629.38253361,0.00041158,2]
[330009212,1718929649207,-861.89258449,0.00041158,2]
[330009213,1718929649227,-251.51814922,0.00047999,4]
[330009214,1718929649248,-153.0,0.00052007,7]
[330009215,1718929649266,-1514.47200007,0.00054,120]
[330009216,1718929746099,-163.499352,0.0004197,2]
[330009217,1718929810072,655.657737,0.00042751,2]
[330009277,1718929833073,-235.3026276,0.00050872,4]
[330009279,1718929833083,-151.0,0.0005207,7]
[330009281,1718929833092,-182.46691096,0.00053999,4]
[330009283,1718929833101,-985.52799993,0.00054,120]
[330009285,1718929833111,-151.0,0.00054,120]
[330009287,1718929833120,-220.6,0.0005408,90]
[330009289,1718929833129,-152.0,0.0005408,90]
[330009292,1718929833138,-8866.0,0.000543,120]
[330009294,1718929833147,-182.62791403,0.000544,2]
[330009296,1718929833156,-500.0,0.00054499,120]
[330009298,1718929833165,-500.0,0.00054499,120]
[330009300,1718929833176,-500.0,0.00054499,120]
[330009302,1718929833192,-356.02775096,0.00054499,120]
[330009304,1718929833201,-2000.0,0.000545,120]
[330009306,1718929833211,-2000.0,0.000545,120]
[330009308,1718929833221,-2000.0,0.000545,120]
[330009310,1718929833230,-2000.0,0.000545,120]
[330009312,1718929833239,-2000.0,0.000545,120]
[330009314,1718929833248,-2000.0,0.000545,120]
[330009315,1718929833257,-2000.0,0.000545,120]
[330009317,1718929833267,-2000.0,0.000545,120]
[330009319,1718929833276,-2000.0,0.000545,120]
[330009321,1718929833285,-2000.0,0.000545,120]
[330009324,1718929833295,-2000.0,0.000545,120]
[330009326,1718929833304,-2000.0,0.000545,120]
[330009328,1718929833314,-2000.0,0.000545,120]
[330009329,1718929833323,-2000.0,0.000545,120]
[330009331,1718929833332,-294.44679653,0.000545,120]
[330009334,1718929833344,-1705.55320347,0.000545,120]
[330009336,1718929833353,-581.754648,0.000545,120]
[330009338,1718929833362,-158.23409006,0.00054517,4]
[330009340,1718929833372,-28344.85904724,0.00054738,2]
[330009404,1718929838216,-436.84778693,0.00054738,2]
[330009406,1718929838229,-23732.12193793,0.00054738,2]
[330009408,1718929838240,-65000.00000001,0.00054793,120]
[330009410,1718929838250,-962.07,0.00054793,120]
[330009411,1718929838261,-500.0,0.00054794,120]
[330009412,1718929838270,-478.85531181,0.00054794,120]
[330009413,1718929838283,-21.14468819,0.00054794,120]
[330009415,1718929838292,-500.0,0.00054794,120]
[330009416,1718929838305,-1307.52,0.00054794,120]
[330009418,1718929838315,-500.0,0.00054794,120]
[330009420,1718929838324,-500.0,0.00054794,120]
[330009422,1718929838334,-500.0,0.00054794,120]
[330009424,1718929838344,-500.0,0.00054794,120]
[330009426,1718929838354,-500.0,0.00054794,120]
[330009428,1718929838365,-500.0,0.00054794,120]
[330009430,1718929838375,-500.0,0.00054794,120]
[330009432,1718929838385,-250.0,0.00054794,120]
[330009433,1718929838395,-500.0,0.00054794,120]
[330009434,1718929838405,-500.0,0.00054794,120]
[330009436,1718929838414,-514.78,0.00054794,120]
[330009438,1718929838424,-626.51,0.00054794,120]
[330009440,1718929838435,-1232.17,0.00054794,120]
[330009441,1718929838446,-500.0,0.00054794,120]
[330009443,1718929838456,-500.0,0.00054794,120]
[330009445,1718929838466,-500.0,0.00054794,120]
[330009446,1718929838476,-500.0,0.00054794,2]
[330009448,1718929838486,-500.0,0.00054794,120]
[330009450,1718929838495,-500.0,0.00054794,120]
[330009451,1718929838505,-500.0,0.00054794,120]
[330009452,1718929838515,-500.0,0.00054794,120]
[330009453,1718929838525,-500.0,0.00054794,120]
[330009454,1718929838535,-500.0,0.00054794,120]
[330009455,1718929838545,-1269.43,0.00054794,120]
[330009456,1718929838555,-500.0,0.00054794,120]
[330009457,1718929838565,-500.0,0.00054794,120]
[330009458,1718929838575,-502.52,0.00054794,120]
[330009459,1718929838584,-773.97,0.00054794,120]
[330009460,1718929838594,-690.58,0.00054794,120]
[330009461,1718929838603,-500.0,0.00054794,120]
[330009462,1718929838613,-2020.84,0.00054794,120]
[330009463,1718929838623,-500.0,0.00054794,120]
[330009464,1718929838634,-500.0,0.00054794,120]
[330009465,1718929838643,-2367.12,0.00054794,120]
[330009466,1718929838652,-500.0,0.00054794,120]
[330009467,1718929838661,-500.0,0.00054794,120]
[330009468,1718929838671,-500.0,0.00054794,120]
[330009469,1718929838680,-500.0,0.00054794,120]
[330009470,1718929838689,-361.74842265,0.00054794,120]
[330009471,1718929838699,-507.69431826,0.00054794,120]
[330009472,1718929838708,-500.0,0.00054794,120]
[330009473,1718929838717,-543.11,0.00054794,7]
[330009474,1718929838726,-500.0,0.00054794,120]
[330009475,1718929838736,-500.0,0.00054794,120]
[330009476,1718929838745,-500.0,0.00054794,2]
[330009477,1718929838754,-500.0,0.00054794,120]
[330009478,1718929838763,-500.0,0.00054794,120]
[330009479,1718929838773,-1368.16,0.00054794,120]
[330009480,1718929838782,-869.16,0.00054794,120]
[330009481,1718929838792,-500.0,0.00054794,120]
[330009482,1718929838801,-598.43,0.00054794,120]
[330009483,1718929838811,-430.0848862,0.00054794,120]
[330009484,1718929838824,-500.0,0.00054794,120]
[330009485,1718929838833,-500.0,0.00054794,120]
[330009486,1718929838842,-500.0,0.00054794,120]
[330009487,1718929838852,-500.0,0.00054794,120]
[330009488,1718929838862,-500.0,0.00054794,120]
[330009489,1718929838872,-500.0,0.00054794,120]
[330009490,1718929838881,-1835.79,0.00054794,120]
[330009491,1718929838891,-500.0,0.00054794,120]
[330009492,1718929838900,-500.0,0.00054794,120]
[330009493,1718929839042,-500.0,0.00054794,120]
[330009494,1718929839052,-549.76624036,0.00054794,120]
[330009495,1718929839063,-1687.77,0.00054794,120]
[330009496,1718929839073,-500.0,0.00054794,120]
[330009497,1718929839082,-558.48,0.00054794,120]
[330009498,1718929839092,-500.0,0.00054794,120]
[330009499,1718929839101,-500.0,0.00054794,120]
[330009500,1718929839112,-1489.08,0.00054794,120]
[330009501,1718929839123,-500.0,0.00054794,120]
[330009502,1718929839133,-709.55,0.00054794,120]
[330009503,1718929839143,-873.36,0.00054794,120]
[330009504,1718929839153,-500.0,0.00054794,120]
[330009505,1718929839164,-500.0,0.00054794,120]
[330009506,1718929839174,-500.0,0.00054794,120]
[330009507,1718929839184,-500.0,0.00054794,120]
[330009508,1718929839194,-850.46,0.00054794,120]
[330009509,1718929839205,-2126.42,0.00054794,120]
[330009510,1718929839216,-500.0,0.00054794,120]
[330009511,1718929839226,-500.0,0.00054794,120]
[330009512,1718929839236,-567.59,0.00054794,120]
[330009513,1718929839247,-500.0,0.00054794,120]
[330009514,1718929839257,-559.66,0.00054794,120]
[330009515,1718929839267,-500.0,0.00054794,120]
[330009516,1718929839277,-1573.27,0.00054794,120]
[330009517,1718929839288,-521.35966754,0.00054794,120]
[330009518,1718929839298,-500.0,0.00054794,120]
[330009519,1718929839308,-657.27,0.00054794,120]
[330009520,1718929839317,-509.74812083,0.00054794,120]
[330009521,1718929839327,-500.0,0.00054794,120]
[330009522,1718929839336,-180.47696669,0.00054794,120]
[330009523,1718929839348,-508.99948502,0.00054794,120]
[330009524,1718929839358,-500.0,0.00054794,120]
[330009525,1718929839368,-1090.64,0.00054794,120]
[330009526,1718929839379,-508.45709867,0.00054794,120]
[330009527,1718929839388,-17892.97,0.00054794,120]
[330009528,1718929839398,-500.0,0.00054794,120]
[330009529,1718929839407,-7273.18,0.00054794,120]
[330009530,1718929839417,-500.0,0.00054794,120]
[330009531,1718929839426,-1536.73,0.00054794,120]
[330009532,1718929839437,-500.0,0.00054794,60]
[330009533,1718929839446,-1153.7,0.00054794,120]
[330009534,1718929839456,-3102.06,0.00054794,120]
[330009535,1718929839465,-1657.07,0.00054794,120]
[330009536,1718929839475,-500.0,0.00054794,120]
[330009537,1718929839485,-571.56,0.00054794,120]
[330009538,1718929839494,-500.0,0.00054794,120]
[330009539,1718929839504,-578.81,0.00054794,120]
[330009540,1718929839514,-500.0,0.00054794,120]
[330009541,1718929839523,-1246.13,0.00054794,120]
[330009542,1718929839532,-500.0,0.00054794,120]
[330009543,1718929839542,-500.0,0.00054794,120]
[330009544,1718929839552,-565.52,0.00054794,120]
[330009545,1718929839562,-620.39,0.00054794,120]
[330009546,1718929839572,-1591.89,0.00054794,120]
[330009547,1718929839581,-500.0,0.00054794,120]
[330009548,1718929839591,-1316.89,0.00054794,120]
[330009549,1718929839600,-50413.9,0.00054794,120]
[330009550,1718929839609,-1130.64,0.00054794,120]
[330009551,1718929839619,-500.0,0.00054794,120]
[330009552,1718929839628,-500.0,0.00054794,120]
[330009553,1718929839637,-183.23295459,0.00054794,120]
[330009554,1718929839647,-500.0,0.00054794,30]
[330009555,1718929839656,-1891.73,0.00054794,120]
[330009556,1718929839665,-500.0,0.00054794,120]
[330009557,1718929839675,-1032.88,0.00054794,120]
[330009558,1718929839684,-7102.69,0.00054794,120]
[330009559,1718929839694,-4351.64,0.00054794,21]
[330009560,1718929839704,-1913.31,0.00054794,120]
[330009561,1718929839714,-1283.43,0.00054794,120]
[330009562,1718929839723,-783.28,0.00054794,120]
[330009563,1718929839732,-498.20287544,0.00054794,120]
[330009564,1718929839743,-500.0,0.00054794,120]
[330009565,1718929839752,-500.0,0.00054794,90]
[330009566,1718929839762,-8486.55,0.00054794,120]
[330009567,1718929839772,-500.0,0.00054794,120]
[330009568,1718929839781,-500.0,0.00054794,120]
[330009569,1718929839791,-1562.03,0.00054794,120]
[330009570,1718929839801,-500.0,0.00054794,120]
[330009571,1718929839812,-2366.38,0.00054794,120]
[330009572,1718929839824,-1041.68,0.00054794,120]
[330009573,1718929839834,-662.84,0.00054794,120]
[330009574,1718929839845,-2275.43,0.00054794,120]
[330009575,1718929839855,-24836.7,0.00054794,120]
[330009576,1718929839865,-708.55,0.00054794,120]
[330009577,1718929839875,-500.0,0.00054794,120]
[330009578,1718929839885,-1241.86,0.00054794,120]
[330009579,1718929839896,-500.0,0.00054794,120]
[330009580,1718929839907,-8244.82,0.00054794,120]
[330009581,1718929839918,-1097.3,0.00054794,120]
[330009582,1718929839927,-500.0,0.00054794,120]
[330009583,1718929839938,-4936.97,0.00054794,120]
[330009584,1718929839948,-4936.97,0.00054794,120]
[330009585,1718929839959,-4936.97,0.00054794,120]
[330009586,1718929839968,-4936.97,0.00054794,120]
[330009587,1718929839977,-4936.97,0.00054794,120]
[330009588,1718929839987,-4936.97,0.00054794,120]
[330009589,1718929839996,-264.50683538,0.00054794,120]
[330009590,1718929840006,-506.88,0.00054794,120]
[330009591,1718929840015,-1997.03,0.00054794,120]
[330009593,1718929840025,-229.17648384,0.00054794,120]
[330009594,1718929840034,-613.45,0.00054794,120]
[330009595,1718929840043,-500.0,0.00054794,120]
[330009596,1718929840054,-500.0,0.00054794,120]
[330009597,1718929840064,-500.0,0.00054794,120]
[330009598,1718929840074,-450.65927335,0.00054794,120]
[330009599,1718929840083,-500.0,0.00054794,120]
[330009600,1718929840092,-500.0,0.00054794,120]
[330009602,1718929840102,-500.0,0.00054794,120]
[330009604,1718929840111,-500.0,0.00054794,120]
[330009605,1718929840121,-661.09,0.00054794,120]
[330009606,1718929840130,-500.0,0.00054794,120]
[330009607,1718929840139,-669.92,0.00054794,120]
[330009608,1718929840149,-733.61,0.00054794,120]
[330009609,1718929840158,-500.0,0.00054794,120]
[330009611,1718929840167,-500.0,0.00054794,120]
[330009612,1718929840177,-1152.67,0.00054794,120]
[330009613,1718929840187,-623.46,0.00054794,120]
[330009614,1718929840197,-4620.32,0.00054794,120]
[330009615,1718929840206,-500.0,0.00054794,120]
[330009616,1718929840224,-500.0,0.00054794,120]
[330009617,1718929840236,-500.0,0.00054794,120]
[330009619,1718929840246,-291.85125027,0.00054794,120]
[330009620,1718929840256,-2986.79,0.00054794,120]
[330009621,1718929840266,-500.0,0.00054794,120]
[330009622,1718929840276,-500.0,0.00054794,120]
[330009623,1718929840286,-500.0,0.00054794,120]
[330009624,1718929840296,-5079.59,0.00054794,120]
[330009625,1718929840305,-500.0,0.00054794,120]
[330009626,1718929840315,-649.33,0.00054794,120]
[330009627,1718929840325,-1780.27,0.00054794,120]
[330009628,1718929840335,-500.0,0.00054794,120]
[330009629,1718929840346,-500.0,0.00054794,120]
[330009630,1718929840356,-500.0,0.00054794,120]
[330009631,1718929840366,-500.0,0.00054794,120]
[330009632,1718929840376,-5166.36036641,0.00054826,120]
[330009633,1718929840386,-4936.97,0.00054899,120]
[330009634,1718929840396,-4936.97,0.00054899,120]
[330009635,1718929840406,-73957.76092299,0.000549,120]
[330009636,1718929840416,-4936.97,0.00054999,120]
[330009637,1718929840425,-34361.70873282,0.00055,35]
[330009638,1718929840435,-252.0,0.00055,34]
[330009640,1718929840445,-160.0,0.00055,50]
[330009642,1718929840455,-4936.97,0.00055067,120]
[330009643,1718929840465,-4936.97,0.00055067,120]
[330009645,1718929840475,-4936.97,0.00055067,120]
[330009647,1718929840485,-4936.97,0.00055067,120]
[330009648,1718929840495,-4936.97,0.00055067,120]
[330009649,1718929840505,-4936.97,0.00055067,120]
[330009650,1718929840515,-4936.97,0.00055067,120]
[330009651,1718929840524,-500.0,0.00055068,120]
[330009652,1718929840535,-500.0,0.00055068,120]
[330009653,1718929840546,-500.0,0.00055068,120]
[330009654,1718929840556,-1307.52,0.00055068,120]
[330009655,1718929840567,-500.006664,0.00055068,120]
[330009656,1718929840577,-500.0,0.00055068,120]
[330009657,1718929840587,-500.0,0.00055068,120]
[330009659,1718929840597,-500.0,0.00055068,120]
[330009661,1718929840607,-500.0,0.00055068,120]
[330009663,1718929840617,-500.0,0.00055068,120]
[330009665,1718929840628,-250.0,0.00055068,120]
[330009668,1718929840638,-500.0,0.00055068,120]
[330009670,1718929840648,-500.0,0.00055068,120]
[330009672,1718929840659,-514.78,0.00055068,120]
[330009674,1718929840669,-626.51,0.00055068,120]
[330009676,1718929840679,-1232.17,0.00055068,120]
[330009678,1718929840689,-500.0,0.00055068,120]
[330009680,1718929840700,-151.0,0.00055068,120]
[330009682,1718929840710,-151.0,0.00055068,120]
[330009684,1718929840721,-500.0,0.00055068,120]
[330009686,1718929840731,-500.0,0.00055068,120]
[330009688,1718929840741,-500.0,0.00055068,2]
[330009690,1718929840751,-151.0,0.00055068,120]
[330009692,1718929840762,-500.0,0.00055068,120]
[330009694,1718929840773,-500.0,0.00055068,120]
[330009696,1718929840783,-500.0,0.00055068,120]
[330009698,1718929840794,-500.0,0.00055068,120]
[330009700,1718929840805,-625.02523902,0.00055068,120]
[330009702,1718929840818,-500.0,0.00055068,120]
[330009705,1718929840831,-151.0,0.00055068,120]
[330009707,1718929840841,-1269.43,0.00055068,120]
[330009709,1718929840851,-500.0,0.00055068,120]
[330009711,1718929840863,-500.0,0.00055068,120]
[330009713,1718929840875,-502.52,0.00055068,120]
[330009715,1718929840886,-773.97,0.00055068,120]
[330009718,1718929840898,-690.58,0.00055068,120]
[330009720,1718929840910,-500.0,0.00055068,120]
[330009721,1718929840921,-2020.84,0.00055068,120]
[330009723,1718929840931,-500.0,0.00055068,120]
[330009725,1718929840942,-2367.12,0.00055068,120]
[330009727,1718929840952,-151.0,0.00055068,120]
[330009729,1718929840962,-151.0,0.00055068,120]